fUSD/lending_fUSD_20251210
["ID","MTS","AMOUNT","RATE_DAILY","PERIOD"]
[398092798,1765363908356,-691.35,0.00016986,2]
[398092799,1765363908370,-500.0,0.00016986,2]
[398092800,1765363908390,-500.0,0.00016986,2]
[398092801,1765363908410,-500.0,0.00016986,2]
[398092802,1765363908428,-831.61,0.00016986,2]
[398092803,1765363908448,-580.62,0.00016986,2]
[398092804,1765363908464,-607.34,0.00016986,2]
[398092805,1765363908483,-558.66,0.00016986,2]
[398092806,1765363908498,-500.0,0.00016986,2]
[398092807,1765363908516,-500.0,0.00016986,2]
[398092808,1765363908529,-687.2,0.00016986,2]
[398092809,1765363908544,-697.92,0.00016986,2]
[398092810,1765363908559,-663.24,0.00016986,2]
[398092811,1765363908573,-500.0,0.00016986,2]
[398092812,1765363908588,-500.0,0.00016986,2]
[398092813,1765363908602,-632.86,0.00016986,2]
[398092814,1765363908619,-500.0,0.00016986,2]
[398092815,1765363908637,-516.81,0.00016986,2]
[398092816,1765363908652,-528.53,0.00016986,2]
[398092817,1765363908667,-588.94,0.00016986,2]
[398092818,1765363908682,-575.19,0.00016986,2]
[398092819,1765363908697,-550.51,0.00016986,2]
[398092820,1765363908712,-520.64,0.00016986,2]
[398092821,1765363908727,-500.0,0.00016986,2]
[398092822,1765363908742,-1386.52,0.00016986,2]
[398092823,1765363908756,-500.0,0.00016986,2]
[398092824,1765363908772,-367.18773392,0.00016986,2]
[398092825,1765363908786,-626.72,0.00016986,2]
[398092826,1765363908801,-540.35,0.00016986,2]
[398092827,1765363908816,-500.0,0.00016986,2]
[398092828,1765363908831,-500.0,0.00016986,2]
[398092829,1765363908845,-500.0,0.00016986,2]
[398092830,1765363908859,-500.0,0.00016986,2]
[398092831,1765363908874,-1096.94,0.00016986,2]
[398092832,1765363908889,-547.45,0.00016986,2]
[398092833,1765363908903,-1026.31,0.00016986,2]
[398092834,1765363908917,-500.0,0.00016986,2]
[398092835,1765363908931,-500.0,0.00016986,2]
[398092836,1765363908946,-500.0,0.00016986,2]
[398092837,1765363908961,-444.23269861,0.00016986,2]
[398092838,1765363908977,-851.24,0.00016986,2]
[398092839,1765363908992,-504.48,0.00016986,2]
[398092840,1765363909006,-500.0,0.00016986,2]
[398092841,1765363909022,-500.0,0.00016986,2]
[398092842,1765363909038,-522.11,0.00016986,2]
[398092843,1765363909053,-500.0,0.00016986,2]
[398092844,1765363909068,-500.0,0.00016986,2]
[398092845,1765363909084,-610.27,0.00016986,2]
[398092846,1765363909100,-687.03,0.00016986,2]
[398092847,1765363909116,-500.0,0.00016986,2]
[398092848,1765363909130,-500.0,0.00016986,2]
[398092849,1765363909145,-500.0,0.00016986,2]
[398092850,1765363909161,-500.0,0.00016986,2]
[398092851,1765363909177,-659.53,0.00016986,2]
[398092852,1765363909192,-1423.99,0.00016986,2]
[398092853,1765363909208,-605.66,0.00016986,2]
[398092854,1765363909223,-500.0,0.00016986,2]
[398092855,1765363909239,-500.0,0.00016986,2]
[398092856,1765363909254,-535.23,0.00016986,2]
[398092857,1765363909269,-500.0,0.00016986,2]
[398092858,1765363909284,-500.0,0.00016986,2]
[398092859,1765363909299,-943.64,0.00016986,2]
[398092860,1765363909312,-605.73,0.00016986,2]
[398092861,1765363909327,-694.43,0.00016986,2]
[398092862,1765363909342,-157.0,0.00016986,2]
[398092863,1765363909356,-2000.0,0.00016986,2]
[398092864,1765363909370,-534.57,0.00016986,2]
[398092865,1765363909384,-500.0,0.00016986,2]
[398092866,1765363909397,-637.14,0.00016986,2]
[398092867,1765363909412,-500.0,0.00016986,2]
[398092868,1765363909426,-500.0,0.00016986,2]
[398092869,1765363909444,-500.0,0.00016986,2]
[398092870,1765363909458,-500.0,0.00016986,2]
[398092871,1765363909471,-1035.09,0.00016986,2]
[398092872,1765363909486,-500.0,0.00016986,2]
[398092873,1765363909500,-638.9,0.00016986,2]
[398092874,1765363909515,-590.56,0.00016986,2]
[398092875,1765363909530,-500.0,0.00016986,2]
[398092876,1765363909544,-823.36,0.00016986,2]
[398092877,1765363909557,-610.31,0.00016986,2]
[398092878,1765363909571,-500.0,0.00016986,2]
[398092879,1765363909586,-500.0,0.00016986,2]
[398092880,1765363909601,-500.0,0.00016986,2]
[398092881,1765363909616,-500.0,0.00016986,2]
[398092882,1765363909630,-620.79,0.00016986,2]
[398092883,1765363909647,-888.67,0.00016986,2]
[398092884,1765363909662,-500.0,0.00016986,2]
[398092885,1765363909678,-500.0,0.00016986,2]
[398092886,1765363909695,-500.0,0.00016986,2]
[398092887,1765363909710,-601.0,0.00016986,2]
[398092888,1765363909724,-500.0,0.00016986,2]
[398092889,1765363909738,-500.0,0.00016986,2]
[398092890,1765363909752,-619.05,0.00016986,2]
[398092891,1765363909766,-473.22213947,0.00016986,2]
[398092892,1765363909781,-500.0,0.00016986,2]
[398092893,1765363909796,-718.66,0.00016986,2]
[398092894,1765363909810,-500.0,0.00016986,2]
[398092895,1765363909824,-575.76,0.00016986,2]
[398092896,1765363909839,-522.38,0.00016986,2]
[398092897,1765363909853,-500.0,0.00016986,2]
[398092898,1765363909867,-528.5,0.00016986,2]
[398092899,1765363909881,-500.0,0.00016986,2]
[398092900,1765363909902,-500.0,0.00016986,2]
[398092901,1765363909919,-500.0,0.00016986,2]
[398092902,1765363909931,-500.0,0.00016986,2]
[398092903,1765363910162,-500.0,0.00016986,2]
[398092904,1765363910173,-582.05,0.00016986,2]
[398092905,1765363910182,-500.0,0.00016986,2]
[398092906,1765363910192,-1023.47,0.00016986,2]
[398092907,1765363910201,-500.0,0.00016986,2]
[398092908,1765363910212,-2989.18,0.00016986,2]
[398092909,1765363910224,-500.0,0.00016986,2]
[398092910,1765363910233,-555.46,0.00016986,2]
[398092911,1765363910243,-500.0,0.00016986,2]
[398092912,1765363910254,-500.0,0.00016986,2]
[398092913,1765363910263,-1304.2,0.00016986,2]
[398092914,1765363910273,-729.87,0.00016986,2]
[398092915,1765363910282,-2869.58,0.00016986,2]
[398092916,1765363910291,-500.0,0.00016986,2]
[398092917,1765363910300,-500.0,0.00016986,2]
[398092918,1765363910311,-501.94,0.00016986,2]
[398092919,1765363910322,-500.0,0.00016986,2]
[398092920,1765363910332,-658.56,0.00016986,2]
[398092921,1765363910343,-500.0,0.00016986,2]
[398092922,1765363910354,-578.29209797,0.00016986,2]
[398092923,1765363910365,-240.83769002,0.00016986,2]
[398092924,1765363910375,-548.02,0.00016986,2]
[398092925,1765363910386,-500.0,0.00016986,2]
[398092926,1765363910396,-509.41889337,0.00016986,2]
[398092927,1765363910407,-500.0,0.00016986,2]
[398092928,1765363910417,-500.0,0.00016986,2]
[398092929,1765363910428,-500.0,0.00016986,2]
[398092930,1765363910438,-500.0,0.00016986,2]
[398092931,1765363910447,-970.77,0.00016986,2]
[398092932,1765363910456,-500.0,0.00016986,2]
[398092933,1765363910465,-1025.9,0.00016986,2]
[398092934,1765363910474,-500.0,0.00016986,2]
[398092935,1765363910482,-540.25,0.00016986,2]
[398092936,1765363910491,-555.46,0.00016986,2]
[398092937,1765363910500,-500.0,0.00016986,2]
[398092938,1765363910509,-832.02,0.00016986,2]
[398092939,1765363910519,-635.2,0.00016986,2]
[398092940,1765363910529,-500.0,0.00016986,2]
[398092941,1765363910538,-515.11,0.00016986,2]
[398092942,1765363910547,-500.0,0.00016986,2]
[398092943,1765363910556,-557.58,0.00016986,2]
[398092944,1765363910565,-695.06,0.00016986,2]
[398092945,1765363910575,-520.93,0.00016986,2]
[398092946,1765363910584,-500.0,0.00016986,2]
[398092947,1765363910595,-500.0,0.00016986,2]
[398092948,1765363910607,-762.87,0.00016986,2]
[398092949,1765363910618,-2138.7,0.00016986,2]
[398092950,1765363910630,-1364.77,0.00016986,2]
[398092951,1765363910640,-572.05,0.00016986,2]
[398092952,1765363910651,-500.0,0.00016986,2]
[398092953,1765363910660,-500.0,0.00016986,2]
[398092954,1765363910672,-765.27,0.00016986,2]
[398092955,1765363910682,-516.6,0.00016986,2]
[398092956,1765363910692,-500.0,0.00016986,2]
[398092957,1765363910702,-951.41,0.00016986,2]
[398092958,1765363910713,-679.67,0.00016986,2]
[398092959,1765363910723,-500.0,0.00016986,2]
[398092960,1765363910732,-718.05,0.00016986,2]
[398092961,1765363910742,-729.92,0.00016986,2]
[398092962,1765363910751,-500.0,0.00016986,2]
[398092963,1765363910761,-531.49,0.00016986,2]
[398092964,1765363910771,-500.0,0.00016986,2]
[398092965,1765363910780,-500.0,0.00016986,2]
[398092966,1765363910790,-503.74,0.00016986,2]
[398092967,1765363910800,-641.54,0.00016986,2]
[398092968,1765363910809,-1067.97,0.00016986,2]
[398092969,1765363910819,-500.0,0.00016986,2]
[398092970,1765363910834,-500.0,0.00016986,2]
[398092971,1765363910844,-539.19,0.00016986,2]
[398092972,1765363910853,-2594.14,0.00016986,2]
[398092973,1765363910863,-500.0,0.00016986,2]
[398092974,1765363910872,-500.0,0.00016986,2]
[398092975,1765363910881,-500.0,0.00016986,2]
[398092976,1765363910891,-545.18,0.00016986,2]
[398092977,1765363910900,-1000.0,0.00016986,2]
[398092978,1765363910909,-500.0,0.00016986,2]
[398092979,1765363910918,-1366.9,0.00016986,2]
[398092980,1765363910928,-780.91,0.00016986,2]
[398092981,1765363910938,-904.37,0.00016986,2]
[398092982,1765363910948,-500.0,0.00016986,2]
[398092983,1765363910958,-500.0,0.00016986,2]
[398092984,1765363910968,-1011.3,0.00016986,2]
[398092985,1765363910982,-1977.85,0.00016986,2]
[398092986,1765363910992,-500.0,0.00016986,2]
[398092987,1765363911001,-413.602092,0.00016986,2]
[398092988,1765363911011,-674.04,0.00016986,2]
[398092989,1765363911020,-530.92,0.00016986,2]
[398092990,1765363911031,-515.73,0.00016986,2]
[398092991,1765363911041,-500.0,0.00016986,2]
[398092992,1765363911052,-500.0,0.00016986,2]
[398092993,1765363911062,-500.0,0.00016986,2]
[398092994,1765363911072,-618.95,0.00016986,2]
[398092995,1765363911081,-746.65,0.00016986,2]
[398092996,1765363911091,-500.0,0.00016986,2]
[398092997,1765363911100,-500.0,0.00016986,2]
[398092998,1765363911110,-500.0,0.00016986,2]
[398092999,1765363911119,-562.39,0.00016986,2]
[398093000,1765363911128,-514.85,0.00016986,2]
[398093001,1765363911138,-500.0,0.00016986,2]
[398093002,1765363911147,-594.84,0.00016986,2]
[398093003,1765363911157,-2704.59,0.00016986,2]
[398093004,1765363911167,-1311.95,0.00016986,2]
[398093005,1765363911176,-672.92,0.00016986,2]
[398093006,1765363911186,-500.0,0.00016986,2]
[398093007,1765363911195,-500.0,0.00016986,2]
[398093008,1765363911204,-500.0,0.00016986,2]
[398093009,1765363911213,-536.09,0.00016986,2]
[398093010,1765363911222,-636.09,0.00016986,2]
[398093011,1765363911232,-500.0,0.00016986,2]
[398093012,1765363911241,-518.62,0.00016986,2]
[398093013,1765363911250,-2690.76,0.00016986,2]
[398093014,1765363911260,-500.0,0.00016986,2]
[398093015,1765363911270,-539.25,0.00016986,2]
[398093016,1765363911279,-500.0,0.00016986,2]
[398093017,1765363911288,-669.46,0.00016986,2]
[398093018,1765363911298,-500.0,0.00016986,2]
[398093019,1765363911307,-500.0,0.00016986,2]
[398093020,1765363911317,-500.0,0.00016986,2]
[398093021,1765363911326,-500.0,0.00016986,2]
[398093022,1765363911336,-500.0,0.00016986,2]
[398093023,1765363911345,-500.0,0.00016986,2]
[398093024,1765363911355,-522.23,0.00016986,2]
[398093025,1765363911366,-633.04,0.00016986,2]
[398093026,1765363911378,-500.0,0.00016986,2]
[398093027,1765363911388,-854.51,0.00016986,2]
[398093028,1765363911397,-500.0,0.00016986,2]
[398093029,1765363911406,-600.0,0.00016986,2]
[398093030,1765363911415,-300.0,0.00016999,2]
[398093031,1765363911424,-150.0,0.00017,2]
[398093032,1765363911433,-1012.0,0.00017,3]
[398093033,1765363911442,-1001.0,0.00017,2]
[398093034,1765363911451,-1002.0,0.00017,3]
[398093035,1765363911461,-80302.34834223,0.00017,2]
[398093036,1765363911469,-83969.39185265,0.00017,2]
[398093037,1765363911478,-250.0,0.00017,2]
[398093038,1765363911487,-269.99831739,0.00017013,5]
[398093039,1765363911496,-1097.0,0.00017017,2]
[398093040,1765363911505,-564.0,0.00017123,2]
[398093041,1765363911514,-195.1772435,0.00017158,2]
[398093042,1765363911523,-300.0,0.00017259,2]
[398093043,1765363911533,-300.0,0.00017259,2]
[398093044,1765363911541,-206.52814355,0.0001726,2]
[398093045,1765363911550,-500.0,0.0001726,2]
[398093046,1765363911560,-500.0,0.0001726,2]
[398093047,1765363911569,-947.85,0.0001726,2]
[398093048,1765363911578,-500.0,0.0001726,2]
[398093049,1765363911586,-500.0,0.0001726,2]
[398093050,1765363911595,-462.36251256,0.0001726,2]
[398093051,1765363911604,-500.0,0.0001726,2]
[398093052,1765363911613,-587.0,0.0001726,2]
[398093053,1765363911623,-500.0,0.0001726,2]
[398093054,1765363911631,-500.0,0.0001726,2]
[398093055,1765363911641,-500.0,0.0001726,2]
[398093056,1765363911650,-500.0,0.0001726,2]
[398093057,1765363911660,-500.0,0.0001726,2]
[398093058,1765363911668,-501.33,0.0001726,2]
[398093059,1765363911677,-625.36866541,0.0001726,2]
[398093060,1765363911686,-576.82,0.0001726,2]
[398093061,1765363911696,-500.0,0.0001726,2]
[398093062,1765363911705,-500.0,0.0001726,2]
[398093063,1765363911715,-532.94,0.0001726,2]
[398093064,1765363911724,-526.76,0.0001726,2]
[398093065,1765363911734,-685.62,0.0001726,2]
[398093066,1765363911743,-500.0,0.0001726,2]
[398093067,1765363911752,-500.0,0.0001726,2]
[398093068,1765363911761,-778.96,0.0001726,2]
[398093069,1765363911770,-500.0,0.0001726,2]
[398093070,1765363911781,-500.0,0.0001726,2]
[398093071,1765363911791,-293.09355251,0.0001726,2]
[398093072,1765363911800,-594.25,0.0001726,2]
[398093073,1765363911809,-500.0,0.0001726,2]
[398093074,1765363911818,-695.24,0.0001726,2]
[398093075,1765363911827,-500.0,0.0001726,2]
[398093076,1765363911836,-500.0,0.0001726,2]
[398093077,1765363911846,-300.0,0.0001726,2]
[398093078,1765363911855,-363.43313072,0.0001726,2]
[398093079,1765363911865,-571.54,0.0001726,2]
[398093080,1765363911874,-500.0,0.0001726,2]
[398093081,1765363911883,-500.0,0.0001726,2]
[398093082,1765363911892,-500.0,0.0001726,2]
[398093083,1765363911901,-500.0,0.0001726,2]
[398093084,1765363911910,-500.0,0.0001726,2]
[398093085,1765363911919,-537.71,0.0001726,2]
[398093086,1765363911929,-526.55,0.0001726,2]
[398093087,1765363911939,-622.54,0.0001726,2]
[398093088,1765363911948,-500.0,0.0001726,2]
[398093089,1765363911958,-500.0,0.0001726,2]
[398093090,1765363911968,-569.43,0.0001726,2]
[398093091,1765363911983,-500.0,0.0001726,2]
[398093092,1765363911993,-500.0,0.0001726,2]
[398093093,1765363912002,-614.97,0.0001726,2]
[398093094,1765363912011,-500.0,0.0001726,2]
[398093095,1765363912021,-500.0,0.0001726,2]
[398093096,1765363912030,-500.0,0.0001726,2]
[398093097,1765363912039,-500.0,0.0001726,2]
[398093098,1765363912048,-500.0,0.0001726,2]
[398093099,1765363912058,-521.75,0.0001726,2]
[398093100,1765363912067,-691.35,0.0001726,2]
[398093101,1765363912075,-500.0,0.0001726,2]
[398093102,1765363912085,-500.0,0.0001726,2]
[398093103,1765363912094,-500.0,0.0001726,2]
[398093104,1765363912103,-831.61,0.0001726,2]
[398093105,1765363912112,-580.62,0.0001726,2]
[398093106,1765363912121,-607.34,0.0001726,2]
[398093107,1765363912130,-558.66,0.0001726,2]
[398093108,1765363912139,-500.0,0.0001726,2]
[398093109,1765363912148,-500.0,0.0001726,2]
[398093110,1765363912157,-687.2,0.0001726,2]
[398093111,1765363912166,-697.92,0.0001726,2]
[398093112,1765363912175,-663.24,0.0001726,2]
[398093113,1765363912184,-500.0,0.0001726,2]
[398093114,1765363912192,-500.0,0.0001726,2]
[398093115,1765363912202,-632.86,0.0001726,2]
[398093116,1765363912211,-500.0,0.0001726,2]
[398093117,1765363912220,-516.81,0.0001726,2]
[398093118,1765363912229,-528.53,0.0001726,2]
[398093119,1765363912238,-588.94,0.0001726,2]
[398093120,1765363912247,-575.19,0.0001726,2]
[398093121,1765363912256,-550.51,0.0001726,2]
[398093122,1765363912265,-520.64,0.0001726,2]
[398093123,1765363912274,-279.56829656,0.0001726,2]
[398093124,1765363912283,-1386.52,0.0001726,2]
[398093125,1765363912293,-500.0,0.0001726,2]
[398093126,1765363912303,-626.72,0.0001726,2]
[398093127,1765363912312,-540.35,0.0001726,2]
[398093128,1765363912322,-500.0,0.0001726,2]
[398093129,1765363912333,-500.0,0.0001726,2]
[398093130,1765363912341,-500.0,0.0001726,2]
[398093131,1765363912351,-500.0,0.0001726,2]
[398093132,1765363912361,-1096.94,0.0001726,2]
[398093133,1765363912371,-547.45,0.0001726,2]
[398093134,1765363912380,-1026.31,0.0001726,2]
[398093135,1765363912389,-500.0,0.0001726,2]
[398093136,1765363912398,-500.0,0.0001726,2]
[398093137,1765363912407,-500.0,0.0001726,2]
[398093138,1765363912416,-851.24,0.0001726,2]
[398093139,1765363912425,-504.48,0.0001726,2]
[398093140,1765363912434,-500.0,0.0001726,2]
[398093141,1765363912443,-500.0,0.0001726,2]
[398093142,1765363912452,-522.11,0.0001726,2]
[398093143,1765363912462,-500.0,0.0001726,2]
[398093144,1765363912471,-500.0,0.0001726,2]
[398093145,1765363912481,-610.27,0.0001726,2]
[398093146,1765363912490,-687.03,0.0001726,2]
[398093147,1765363912500,-500.0,0.0001726,2]
[398093148,1765363912509,-500.0,0.0001726,2]
[398093149,1765363912518,-500.0,0.0001726,2]
[398093150,1765363912528,-500.0,0.0001726,2]
[398093151,1765363912536,-659.53,0.0001726,2]
[398093152,1765363912546,-1423.99,0.0001726,2]
[398093153,1765363912554,-605.66,0.0001726,2]
[398093154,1765363912564,-500.0,0.0001726,2]
[398093155,1765363912574,-500.0,0.0001726,2]
[398093156,1765363912583,-535.23,0.0001726,2]
[398093157,1765363912593,-500.0,0.0001726,2]
[398093158,1765363912602,-500.0,0.0001726,2]
[398093159,1765363912612,-943.64,0.0001726,2]
[398093160,1765363912620,-605.73,0.0001726,2]
[398093161,1765363912629,-694.43,0.0001726,2]
[398093162,1765363912639,-157.0,0.0001726,2]
[398093163,1765363912648,-2000.0,0.0001726,2]
[398093164,1765363912657,-534.57,0.0001726,2]
[398093165,1765363912667,-500.0,0.0001726,2]
[398093166,1765363912677,-637.14,0.0001726,2]
[398093167,1765363912686,-500.0,0.0001726,2]
[398093168,1765363912696,-500.0,0.0001726,2]
[398093169,1765363912705,-500.0,0.0001726,2]
[398093170,1765363912714,-500.0,0.0001726,2]
[398093171,1765363912723,-1035.09,0.0001726,2]
[398093172,1765363912732,-500.0,0.0001726,2]
[398093173,1765363912741,-638.9,0.0001726,2]
[398093174,1765363912751,-590.56,0.0001726,2]
[398093175,1765363912761,-500.0,0.0001726,2]
[398093176,1765363912770,-823.36,0.0001726,2]
[398093177,1765363912779,-610.31,0.0001726,2]
[398093178,1765363912789,-544.33208803,0.0001726,2]
[398093179,1765363912799,-500.0,0.0001726,2]
[398093180,1765363912808,-500.0,0.0001726,2]
[398093181,1765363912818,-500.0,0.0001726,2]
[398093182,1765363912827,-620.79,0.0001726,2]
[398093183,1765363912837,-888.67,0.0001726,2]
[398093184,1765363912846,-500.0,0.0001726,2]
[398093185,1765363912857,-500.0,0.0001726,2]
[398093186,1765363912867,-500.0,0.0001726,2]
[398093187,1765363912876,-601.0,0.0001726,2]
[398093188,1765363912886,-500.0,0.0001726,2]
[398093189,1765363912897,-636.85474943,0.0001726,2]
[398093190,1765363912906,-619.05,0.0001726,2]
[398093191,1765363912916,-500.0,0.0001726,2]
[398093192,1765363912926,-718.66,0.0001726,2]
[398093193,1765363912935,-306.34764663,0.0001726,2]
[398093194,1765363912944,-522.38,0.0001726,2]
[398093195,1765363912954,-575.76,0.0001726,2]
[398093196,1765363912963,-500.0,0.0001726,2]
[398093197,1765363912976,-528.5,0.0001726,2]
[398093198,1765363912986,-500.0,0.0001726,2]
[398093199,1765363912995,-500.0,0.0001726,2]
[398093200,1765363913005,-500.0,0.0001726,2]
[398093201,1765363913016,-500.0,0.0001726,2]
[398093202,1765363913025,-500.0,0.0001726,2]
[398093203,1765363913036,-582.05,0.0001726,2]
[398093204,1765363913046,-500.0,0.0001726,2]
[398093205,1765363913059,-1023.47,0.0001726,2]
[398093206,1765363913069,-500.0,0.0001726,2]
[398093207,1765363913078,-2989.18,0.0001726,2]
[398093208,1765363913088,-500.0,0.0001726,2]
[398093209,1765363913098,-555.46,0.0001726,2]
[398093210,1765363913108,-500.0,0.0001726,2]
[398093211,1765363913118,-500.0,0.0001726,2]
[398093212,1765363913128,-1304.2,0.0001726,2]
[398093213,1765363913137,-729.87,0.0001726,2]
[398093214,1765363913146,-2869.58,0.0001726,2]
[398093215,1765363913157,-500.0,0.0001726,2]
[398093216,1765363913168,-500.0,0.0001726,2]
[398093217,1765363913178,-501.94,0.0001726,2]
[398093218,1765363913188,-500.0,0.0001726,2]
[398093219,1765363913199,-658.56,0.0001726,2]
[398093220,1765363913209,-500.0,0.0001726,2]
[398093221,1765363913219,-548.02,0.0001726,2]
[398093222,1765363913402,-500.0,0.0001726,2]
[398093223,1765363913413,-500.0,0.0001726,2]
[398093224,1765363913423,-500.0,0.0001726,2]
[398093225,1765363913432,-500.0,0.0001726,2]
[398093226,1765363913442,-500.0,0.0001726,2]
[398093227,1765363913451,-970.77,0.0001726,2]
[398093228,1765363913462,-500.0,0.0001726,2]
[398093229,1765363913471,-1025.9,0.0001726,2]
[398093230,1765363913480,-500.0,0.0001726,2]
[398093231,1765363913490,-540.25,0.0001726,2]
[398093232,1765363913499,-555.46,0.0001726,2]
[398093233,1765363913509,-500.0,0.0001726,2]
[398093234,1765363913518,-832.02,0.0001726,2]
[398093235,1765363913527,-635.2,0.0001726,2]
[398093236,1765363913537,-500.0,0.0001726,2]
[398093237,1765363913546,-515.11,0.0001726,2]
[398093238,1765363913556,-165.75531425,0.0001726,2]
[398093239,1765363913566,-557.58,0.0001726,2]
[398093240,1765363913576,-695.06,0.0001726,2]
[398093241,1765363913586,-520.93,0.0001726,2]
[398093242,1765363913596,-500.0,0.0001726,2]
[398093243,1765363913606,-266.82575864,0.0001726,2]
[398093244,1765363913616,-762.87,0.0001726,2]
[398093245,1765363913626,-2138.7,0.0001726,2]
[398093246,1765363913636,-1364.77,0.0001726,2]
[398093247,1765363913646,-572.05,0.0001726,2]
[398093248,1765363913656,-500.0,0.0001726,2]
[398093249,1765363913666,-500.0,0.0001726,2]
[398093250,1765363913676,-765.27,0.0001726,2]
[398093251,1765363913685,-516.6,0.0001726,2]
[398093252,1765363913695,-500.0,0.0001726,2]
[398093253,1765363913704,-951.41,0.0001726,2]
[398093254,1765363913714,-679.67,0.0001726,2]
[398093255,1765363913724,-500.0,0.0001726,2]
[398093256,1765363913734,-718.05,0.0001726,2]
[398093257,1765363913745,-729.92,0.0001726,2]
[398093258,1765363913755,-500.0,0.0001726,2]
[398093259,1765363913765,-531.49,0.0001726,2]
[398093260,1765363913775,-500.0,0.0001726,2]
[398093261,1765363913786,-500.0,0.0001726,2]
[398093262,1765363913796,-503.74,0.0001726,2]
[398093263,1765363913807,-641.54,0.0001726,2]
[398093264,1765363913818,-1067.97,0.0001726,2]
[398093265,1765363913829,-500.0,0.0001726,2]
[398093266,1765363913839,-500.0,0.0001726,2]
[398093267,1765363913850,-539.19,0.0001726,2]
[398093268,1765363913861,-2594.14,0.0001726,2]
[398093269,1765363913871,-500.0,0.0001726,2]
[398093270,1765363913882,-500.0,0.0001726,2]
[398093271,1765363913892,-500.0,0.0001726,2]
[398093272,1765363913902,-545.18,0.0001726,2]
[398093273,1765363913912,-1000.0,0.0001726,2]
[398093274,1765363913922,-229.32728759,0.0001726,2]
[398093275,1765363913932,-1366.9,0.0001726,2]
[398093276,1765363913944,-780.91,0.0001726,2]
[398093277,1765363913954,-904.37,0.0001726,2]
[398093278,1765363913965,-500.0,0.0001726,2]
[398093279,1765363913978,-463.41964693,0.0001726,2]
[398093280,1765363913989,-1011.3,0.0001726,2]
[398093281,1765363913999,-1977.85,0.0001726,2]
[398093282,1765363914015,-500.0,0.0001726,2]
[398093283,1765363914026,-674.04,0.0001726,2]
[398093284,1765363914035,-530.92,0.0001726,2]
[398093285,1765363914045,-515.73,0.0001726,2]
[398093286,1765363914056,-500.0,0.0001726,2]
[398093287,1765363914066,-500.0,0.0001726,2]
[398093288,1765363914075,-500.0,0.0001726,2]
[398093289,1765363914086,-618.95,0.0001726,2]
[398093290,1765363914095,-746.65,0.0001726,2]
[398093291,1765363914104,-500.0,0.0001726,2]
[398093292,1765363914115,-500.0,0.0001726,2]
[398093293,1765363914125,-500.0,0.0001726,2]
[398093294,1765363914135,-562.39,0.0001726,2]
[398093295,1765363914144,-514.85,0.0001726,2]
[398093296,1765363914154,-500.0,0.0001726,2]
[398093297,1765363914164,-594.84,0.0001726,2]